bitfinex-derivatives/quotes_BTCF0:USTF0_20250125
["timestamp","ask_amount","ask_price","bid_price","bid_amount"]
[1737842670865,0.72749497,105230.0,105220.0,1.39956055]
[1737842671065,0.72749497,105230.0,105220.0,1.43994493]
[1737842673960,0.72749497,105230.0,105220.0,1.07914493]
[1737842674159,0.72749497,105230.0,105220.0,1.43994493]
[1737842674759,0.72749497,105230.0,105220.0,1.12211328]
[1737842676158,0.72749497,105230.0,105220.0,0.76131328]
[1737842676669,0.72749497,105230.0,105220.0,1.12211328]
[1737842677669,0.72749497,105230.0,105220.0,1.16174399]
[1737842680057,0.72749497,105230.0,105220.0,1.12211328]
[1737842680266,0.72749497,105230.0,105220.0,1.45422493]
[1737842682368,0.72749497,105230.0,105220.0,1.49386798]
[1737842685066,0.72749497,105230.0,105220.0,1.13306798]
[1737842685468,0.72749497,105230.0,105220.0,1.09342493]
[1737842685663,0.72749497,105230.0,105220.0,1.00404493]
[1737842686266,0.72749497,105230.0,105220.0,0.93568493]
[1737842686466,0.72749497,105230.0,105220.0,1.00404493]
[1737842687076,0.72749497,105230.0,105220.0,0.93568493]
[1737842687568,0.72749497,105230.0,105220.0,1.00404493]
[1737842689175,0.72749497,105230.0,105220.0,1.36484493]
[1737842690675,1.92749497,105230.0,105220.0,1.33214493]
[1737842691079,1.97509497,105230.0,105220.0,1.33214493]
[1737842691574,1.97509497,105230.0,105220.0,1.26378493]
[1737842691879,2.33589497,105230.0,105220.0,0.69955497]
[1737842692065,2.37469497,105230.0,105220.0,0.65917059]
[1737842692273,2.37469497,105230.0,105220.0,0.71051555]
[1737842693574,2.37469497,105230.0,105220.0,0.65917059]
[1737842694084,2.37469497,105230.0,105220.0,0.71051555]
[1737842695378,2.37455201,105230.0,105220.0,0.71051555]
[1737842695578,2.37455201,105230.0,105220.0,0.66204292]
[1737842695972,2.52662201,105230.0,105220.0,0.61069796]
[1737842696473,2.57796697,105230.0,105220.0,0.61069796]
[1737842699073,2.57796697,105230.0,105220.0,0.27815526]
[1737842701879,2.57796697,105230.0,105220.0,0.2268103]
[1737842703985,2.6633125,105230.0,105220.0,0.17007313]
[1737842706281,2.6633125,105230.0,105220.0,0.32215813]
[1737842706781,2.6633125,105230.0,105220.0,0.37350309]
[1737842706981,2.6633125,105230.0,105220.0,0.32215813]
[1737842708489,2.77735846,105230.0,105220.0,0.152085]
[1737842709382,2.6872135,105230.0,105220.0,0.20342996]
[1737842710392,2.6872135,105230.0,105220.0,0.152085]
[1737842710778,0.9743435,105230.0,105220.0,0.25477492]
[1737842710991,0.9743435,105230.0,105220.0,0.28262996]
[1737842711389,1.3351435,105230.0,105220.0,0.28262996]
[1737842711992,1.13575201,105230.0,105220.0,0.45270309]
[1737842713285,0.77495201,105230.0,105220.0,0.45270309]
[1737842715295,0.20455201,105230.0,105220.0,0.45270309]
[1737842715687,0.20455201,105230.0,105220.0,0.50404805]
[1737842715896,0.20455201,105230.0,105220.0,0.45270309]
[1737842716187,0.20455201,105230.0,105220.0,0.50404805]
[1737842716786,0.20455201,105230.0,105220.0,0.98768808]
[1737842717289,0.20455201,105230.0,105220.0,1.08272252]
[1737842717499,0.20455201,105230.0,105220.0,1.12304708]
[1737842720194,0.77495201,105230.0,105220.0,1.12304708]
[1737842720394,0.77482852,105230.0,105220.0,1.12304708]
[1737842720791,0.20442852,105230.0,105220.0,1.12304708]
[1737842720991,0.15682852,105230.0,105220.0,1.12304708]
[1737842721991,0.15682852,105230.0,105220.0,1.45657262]
[1737842728501,0.15682852,105230.0,105220.0,1.41624806]
[1737842731704,0.15682852,105230.0,105220.0,1.45654944]
[1737842732207,0.15682852,105230.0,105220.0,1.3989471]
[1737842735007,0.15682852,105230.0,105220.0,1.4132271]
[1737842736308,0.15682852,105230.0,105220.0,1.47082944]
[1737842741007,0.15682852,105230.0,105220.0,1.13046262]
[1737842742311,0.15682852,105230.0,105220.0,1.19882262]
[1737842742604,0.15682852,105230.0,105220.0,1.11962262]
[1737842742910,0.15682852,105230.0,105220.0,1.06431181]
[1737842745010,0.15682852,105230.0,105220.0,1.39642346]
[1737842745204,0.72722852,105230.0,105220.0,1.39642346]
[1737842745609,0.72722852,105230.0,105220.0,1.03562346]
[1737842746209,0.72722852,105230.0,105220.0,1.39642346]
[1737842748425,0.72722852,105230.0,105220.0,0.91325983]
[1737842748715,0.76602852,105230.0,105220.0,0.98161983]
[1737842749310,0.76602852,105230.0,105220.0,1.42546343]
[1737842751211,0.81362852,105230.0,105220.0,1.42546343]
[1737842752519,0.81362852,105230.0,105220.0,1.3220238]
[1737842757329,0.81362852,105230.0,105220.0,0.98161983]
[1737842758322,2.37442852,105230.0,105220.0,0.77818987]
[1737842759325,2.57784348,105230.0,105220.0,0.64921077]
[1737842759529,2.57784348,105230.0,105220.0,0.60890939]
[1737842759929,2.57784348,105230.0,105220.0,0.66025435]
[1737842761328,2.57784348,105230.0,105220.0,0.60890939]
[1737842766935,2.66318901,105230.0,105220.0,0.39690143]
[1737842772039,2.57784348,105230.0,105220.0,0.17010061]
[1737842773440,2.57784348,105230.0,105220.0,0.32218561]
[1737842775043,2.57784348,105230.0,105220.0,0.152085]
[1737842776047,0.152085,105220.0,105210.0,0.63938108]
[1737842776240,1.083285,105220.0,105210.0,0.63938108]
[1737842776541,2.283285,105220.0,105210.0,0.63938108]
[1737842776935,1.083285,105220.0,105210.0,0.63938108]
[1737842777135,1.083285,105220.0,105210.0,0.64038108]
[1737842777330,1.083285,105220.0,105210.0,0.64138108]
[1737842784757,1.083285,105220.0,105210.0,0.47128047]
[1737842789457,1.083285,105220.0,105210.0,0.81328809]
[1737842791150,1.083285,105220.0,105210.0,0.52798068]
[1737842793459,1.083285,105220.0,105210.0,1.15398432]
[1737842793677,1.083285,105220.0,105210.0,1.23495943]
[1737842793854,1.083285,105220.0,105210.0,1.30331943]
[1737842797254,1.083285,105220.0,105210.0,1.36036917]
[1737842802462,1.083285,105220.0,105210.0,1.30902421]
[1737842802665,1.083285,105220.0,105210.0,1.36036917]
[1737842802857,1.083285,105220.0,105210.0,1.30902421]
[1737842804363,1.083285,105220.0,105210.0,1.26849553]
[1737842804760,1.083285,105220.0,105210.0,1.30978495]
[1737842804960,1.083285,105220.0,105210.0,1.26849553]
[1737842805564,1.083285,105220.0,105210.0,1.31984049]
[1737842805866,1.08314206,105220.0,105210.0,1.31984049]
[1737842806264,1.08314206,105220.0,105210.0,1.36119704]
[1737842806456,1.08314206,105220.0,105210.0,1.31984049]
[1737842811164,1.13074206,105220.0,105210.0,1.31984049]
[1737842813562,1.13074206,105220.0,105210.0,0.97928972]
[1737842815065,0.56034206,105220.0,105210.0,0.97928972]
[1737842815266,1.13074206,105220.0,105210.0,0.97928972]
[1737842816269,1.13074206,105220.0,105210.0,1.02056571]
[1737842817171,1.13074206,105220.0,105210.0,0.97928972]
[1737842819474,0.9788,105220.0,105210.0,0.97928972]
[1737842819665,0.9788,105220.0,105210.0,1.31984049]
[1737842821873,0.9788,105220.0,105210.0,1.37118545]
[1737842822072,0.4084,105220.0,105210.0,1.37118545]
[1737842823171,0.4084,105220.0,105210.0,1.41246166]
[1737842823567,0.0476,105220.0,105210.0,1.34410166]
[1737842823767,0.0476,105220.0,105210.0,1.82702893]
[1737842824366,0.0476,105220.0,105210.0,1.86830514]
[1737842824570,0.0476,105220.0,105210.0,1.82702893]
[1737842824772,0.0476,105220.0,105210.0,1.86830514]
[1737842826377,0.0476,105220.0,105210.0,1.82702893]
[1737842826679,0.0476,105220.0,105210.0,1.93664402]
[1737842829974,0.24217405,105230.0,105210.0,1.83589698]
[1737842830182,0.24217405,105230.0,105220.0,0.69347492]
[1737842830378,0.15682852,105230.0,105220.0,0.73392135]
[1737842830875,0.15682852,105230.0,105220.0,0.82896031]
[1737842834775,0.15682852,105230.0,105220.0,1.46866585]
[1737842838086,0.15682852,105230.0,105220.0,1.4779557]
[1737842844284,0.15682852,105230.0,105220.0,1.51923191]
[1737842846991,0.15682852,105230.0,105220.0,1.52015955]
[1737842850287,0.15682852,105230.0,105220.0,1.58847955]
[1737842850897,0.15682852,105230.0,105220.0,1.9859361]
[1737842855193,0.72722852,105230.0,105220.0,1.9859361]
[1737842861099,0.15682852,105230.0,105220.0,1.9859361]
[1737842861500,0.11406191,105230.0,105220.0,1.9859361]
[1737842863003,0.11406191,105230.0,105220.0,2.38146475]
[1737842863698,1.67486191,105230.0,105220.0,1.78210083]
[1737842864105,1.67486191,105230.0,105220.0,1.83344579]
[1737842864302,1.67486191,105230.0,105220.0,1.79654579]
[1737842864804,1.67486191,105230.0,105220.0,1.74520083]
[1737842865008,1.67486191,105230.0,105220.0,1.79654579]
[1737842866006,1.31406191,105230.0,105220.0,1.79654579]
[1737842866205,1.88446191,105230.0,105220.0,1.79654579]
[1737842866706,2.24526191,105230.0,105220.0,1.79654579]
[1737842866904,2.24526191,105230.0,105220.0,1.74520083]
[1737842869904,2.24526191,105230.0,105220.0,1.79654579]
[1737842870994,2.29286191,105230.0,105220.0,1.79654579]
[1737842871908,2.29286191,105230.0,105220.0,1.00356059]
[1737842873802,1.93206191,105230.0,105220.0,1.00356059]
[1737842874107,1.93206191,105230.0,105220.0,0.95221563]
[1737842874303,2.29286191,105230.0,105220.0,0.95221563]
[1737842874608,1.93206191,105230.0,105220.0,0.95221563]
[1737842875303,2.29286191,105230.0,105220.0,0.95221563]
[1737842875700,1.93206191,105230.0,105220.0,0.88389563]
[1737842875900,1.93206191,105230.0,105220.0,0.78568567]
[1737842875901,2.34420687,105230.0,105220.0,0.78568567]
[1737842876104,2.34420687,105230.0,105220.0,0.74440946]
[1737842877205,2.34420687,105230.0,105220.0,0.70396303]
[1737842878110,2.34420687,105230.0,105220.0,0.63564303]
[1737842878312,2.49627687,105230.0,105220.0,0.70396303]
[1737842878508,2.49627687,105230.0,105220.0,0.74437525]
[1737842878903,2.34420687,105230.0,105220.0,0.90739299]
[1737842879100,2.34420687,105230.0,105220.0,0.89645671]
[1737842879410,2.34420687,105230.0,105220.0,0.90739299]
[1737842879605,2.34420687,105230.0,105220.0,0.89645521]
[1737842879911,2.34420687,105230.0,105220.0,0.93803955]
[1737842880318,2.34420687,105230.0,105220.0,0.89645521]
[1737842880912,2.34420687,105230.0,105220.0,0.89763332]
[1737842881215,2.34420687,105230.0,105220.0,0.89763369]
[1737842881415,2.34420687,105230.0,105220.0,1.13922602]
[1737842881919,2.29286191,105230.0,105220.0,1.19057098]
[1737842882817,2.49627687,105230.0,105220.0,0.97785117]
[1737842883212,2.49627687,105230.0,105220.0,0.90953117]
[1737842884619,2.50590029,105230.0,105220.0,1.06161617]
[1737842884818,2.49627687,105230.0,105220.0,1.11296113]
[1737842885213,2.44493191,105230.0,105220.0,0.77274544]
[1737842887710,2.45454489,105230.0,105220.0,0.77274544]
[1737842888928,2.45454489,105230.0,105220.0,0.62066044]
[1737842889226,2.45454489,105230.0,105220.0,0.44789029]
[1737842891415,2.45440195,105230.0,105220.0,0.44789029]
[1737842893022,2.45440195,105230.0,105220.0,0.22129296]
[1737842893326,2.50574691,105230.0,105220.0,0.22129296]
[1737842896922,2.45440195,105230.0,105220.0,0.22129296]
[1737842900633,2.45440195,105230.0,105220.0,0.27263792]
[1737842902135,2.45440195,105230.0,105220.0,0.49923525]
[1737842904940,2.44478897,105230.0,105220.0,0.49923525]
[1737842906243,2.5301345,105230.0,105220.0,0.49923525]
[1737842907347,2.5301345,105230.0,105220.0,0.53873525]
[1737842907551,1.3301345,105230.0,105220.0,0.69082025]
[1737842910347,1.3301345,105230.0,105220.0,0.75914025]
[1737842911450,1.3301345,105230.0,105220.0,0.77704243]
[1737842913359,1.3301345,105230.0,105220.0,0.70872243]
[1737842913551,1.3301345,105230.0,105220.0,0.77704243]
[1737842915860,1.24478897,105230.0,105220.0,0.77704243]
[1737842916952,1.24478897,105230.0,105220.0,0.92912743]
[1737842918652,1.24478897,105230.0,105220.0,0.77704243]
[1737842922164,1.24478897,105230.0,105220.0,0.72569747]
[1737842922664,1.24478897,105230.0,105220.0,0.77704243]
[1737842925466,1.24478897,105230.0,105220.0,0.72569747]
[1737842926165,1.24478897,105230.0,105220.0,0.77704243]
[1737842927166,1.24478897,105230.0,105220.0,0.72569747]
[1737842928468,1.24478897,105230.0,105220.0,0.68619747]
[1737842930969,1.19718897,105230.0,105220.0,0.68619747]
[1737842931175,2.44478897,105230.0,105220.0,0.68619747]
[1737842931668,2.5301345,105230.0,105220.0,0.40317803]
[1737842936476,2.5301345,105230.0,105220.0,0.34651097]
[1737842938676,2.5301345,105230.0,105220.0,0.22684601]
[1737842938878,2.58147946,105230.0,105220.0,0.22684601]
[1737842940169,2.58147946,105230.0,105220.0,0.27819097]
[1737842940570,2.58147946,105230.0,105220.0,0.22684601]
[1737842940874,2.58147946,105230.0,105220.0,0.27819097]
[1737842941978,2.58147946,105230.0,105220.0,0.22684601]
[1737842945190,2.69552542,105230.0,105220.0,0.39696263]
[1737842948191,2.69552542,105230.0,105220.0,0.44830759]
[1737842948893,2.69552542,105230.0,105220.0,0.39696263]
[1737842954191,2.64418046,105230.0,105220.0,0.39696263]
[1737842960292,2.07378046,105230.0,105220.0,0.39696263]
[1737842961892,2.07378046,105230.0,105220.0,0.22684601]
[1737842963290,0.87378046,105230.0,105220.0,0.27819097]
[1737842963487,0.87378046,105230.0,105220.0,0.22684601]
[1737842963687,0.87378046,105230.0,105220.0,0.31719097]
[1737842964091,0.87378046,105230.0,105220.0,0.26584601]
[1737842965090,0.87378046,105230.0,105220.0,0.88412951]
[1737842965296,1.44418046,105230.0,105220.0,0.88412951]
[1737842966300,1.44418046,105230.0,105220.0,0.89359836]
[1737842968392,1.3301345,105230.0,105220.0,0.66675235]
[1737842975997,1.3301345,105230.0,105220.0,0.89367857]
[1737842976904,1.3301345,105230.0,105220.0,1.09710853]
[1737842977506,1.3301345,105230.0,105220.0,1.04576357]
[1737842977701,1.3301345,105230.0,105220.0,1.09710853]
[1737842980099,1.24478897,105230.0,105220.0,0.81883735]
[1737842981406,1.24478897,105230.0,105220.0,0.87018231]
[1737842984006,1.09271897,105230.0,105220.0,0.87018231]
[1737842984308,0.16151897,105230.0,105220.0,1.27139621]
[1737842984507,0.16151897,105230.0,105220.0,1.36643065]
[1737842984698,0.16151897,105230.0,105220.0,1.00563065]
[1737842985295,0.11391897,105230.0,105220.0,1.36643065]
[1737842989006,0.11391897,105230.0,105220.0,1.75856585]
[1737842992920,0.11391897,105230.0,105220.0,1.85034291]
[1737842993309,0.11391897,105230.0,105220.0,1.79899795]
[1737842993510,0.11391897,105230.0,105220.0,1.85034291]
[1737842994611,0.11391897,105230.0,105220.0,1.77284585]
[1737842995912,0.11391897,105230.0,105220.0,1.82419081]
[1737842996216,0.11391897,105230.0,105220.0,1.77284585]
[1737842997116,0.11391897,105230.0,105220.0,1.82419081]
[1737842997427,0.11391897,105230.0,105220.0,1.43741327]
[1737842998710,0.11391897,105230.0,105220.0,1.48875823]
[1737842998911,0.11391897,105230.0,105220.0,1.43741327]
[1737843004328,0.11391897,105230.0,105220.0,1.47784537]
[1737843004716,0.11391897,105230.0,105220.0,1.43741327]
[1737843008230,0.11391897,105230.0,105220.0,1.48875823]
[1737843008431,0.11391897,105230.0,105220.0,1.43741327]
[1737843010033,0.11391897,105230.0,105220.0,1.77284585]
[1737843018836,0.11391897,105230.0,105220.0,1.43263016]
[1737843023538,0.11391897,105230.0,105220.0,1.47306226]
[1737843024741,0.11391897,105230.0,105220.0,1.43263016]
[1737843025342,0.68431897,105230.0,105220.0,1.43263016]
[1737843027445,0.68431897,105230.0,105220.0,1.43776441]
[1737843032649,0.68431897,105230.0,105220.0,1.47819651]
[1737843034545,0.68431897,105230.0,105220.0,1.85431091]
[1737843034750,0.68431897,105230.0,105220.0,1.81387881]
[1737843034943,0.68431897,105230.0,105220.0,1.82815881]
[1737843038649,0.68431897,105230.0,105220.0,1.43263016]
[1737843041043,0.68431897,105230.0,105220.0,1.48397512]
[1737843048552,0.68431897,105230.0,105220.0,1.14854254]
[1737843050265,0.68431897,105230.0,105220.0,1.09719758]
[1737843050456,0.68431897,105230.0,105220.0,1.14854254]
[1737843050759,0.68431897,105230.0,105220.0,1.09719758]
[1737843051557,0.68431897,105230.0,105220.0,1.14854254]
[1737843052561,0.68431897,105230.0,105220.0,1.09719758]
[1737843052858,0.68431897,105230.0,105220.0,1.43263016]
[1737843054348,0.08534553,105250.0,105220.0,1.47557055]
[1737843054554,0.0476,105240.0,105230.0,0.267487]
[1737843054761,0.08534553,105250.0,105240.0,0.152056]
[1737843054952,0.63899771,105250.0,105240.0,0.6225499]
[1737843055755,0.63899771,105250.0,105240.0,0.77658478]
[1737843059063,0.63899771,105250.0,105240.0,0.72523982]
[1737843060262,0.71459771,105250.0,105240.0,0.72523982]
[1737843062064,0.71459771,105250.0,105240.0,0.73476584]
[1737843062363,0.71459771,105250.0,105240.0,1.35783837]
[1737843062364,0.646,105250.0,105240.0,1.35783837]
[1737843064467,0.646,105250.0,105240.0,1.30649341]
[1737843064671,0.646,105250.0,105240.0,1.23721341]
[1737843064964,0.646,105250.0,105240.0,1.26587951]
[1737843065766,2.41018596,105250.0,105240.0,0.70167855]
[1737843066265,2.41018596,105250.0,105240.0,0.62307253]
[1737843066459,2.41018596,105250.0,105240.0,0.69215253]
[1737843066961,2.41018596,105250.0,105240.0,0.62307253]
[1737843067163,2.41018596,105250.0,105240.0,0.69215253]
[1737843069966,2.41018596,105250.0,105220.0,0.221157]
[1737843069967,0.07243042,105230.0,105220.0,0.221157]
[1737843070268,0.48457538,105230.0,105220.0,0.54440155]
[1737843070461,0.56227538,105230.0,105220.0,0.54440155]
[1737843070764,0.56227538,105230.0,105220.0,0.51342966]
[1737843071157,0.56227538,105230.0,105220.0,0.51442966]
[1737843071670,0.71434538,105230.0,105220.0,0.51542966]
[1737843071969,1.07514538,105230.0,105220.0,0.51542966]
[1737843072959,0.71434538,105230.0,105220.0,0.51542966]
[1737843073558,0.71434538,105230.0,105220.0,0.50607165]
[1737843073865,0.71434538,105230.0,105220.0,0.35399465]
[1737843074063,0.71434538,105230.0,105220.0,0.07108]
[1737843074365,0.71434538,105230.0,105220.0,0.12242496]
[1737843074560,0.71434538,105230.0,105220.0,0.07108]
[1737843074752,1.07514538,105230.0,105220.0,0.07108]
[1737843075260,1.07514538,105230.0,105220.0,0.12242496]
[1737843076069,1.07514538,105230.0,105220.0,0.07108]
[1737843076269,1.07514538,105230.0,105220.0,0.12242496]
[1737843076660,1.07514538,105230.0,105220.0,0.07108]
[1737843077154,1.07514538,105230.0,105220.0,0.05334496]
[1737843077360,1.07514538,105230.0,105220.0,0.12230496]
[1737843077560,1.02380042,105230.0,105220.0,0.12230496]
[1737843081274,1.07514538,105230.0,105220.0,0.12230496]
[1737843082165,1.02380042,105230.0,105220.0,0.12230496]
[1737843082773,1.02380042,105230.0,105220.0,0.17364992]
[1737843083167,1.02380042,105230.0,105220.0,0.12230496]
[1737843084574,1.02380042,105230.0,105220.0,0.17364992]
[1737843085081,0.95137,105230.0,105220.0,0.12230496]
[1737843086378,0.95137,105230.0,105220.0,0.05334496]
[1737843086575,0.95137,105230.0,105220.0,0.12218496]
[1737843089477,0.95137,105230.0,105220.0,0.27426996]
[1737843089981,0.95137,105230.0,105220.0,0.32561492]
[1737843090179,1.02380042,105230.0,105220.0,0.20542996]
[1737843090481,1.02380042,105230.0,105220.0,0.32557492]
[1737843090982,1.02380042,105230.0,105220.0,0.27422996]
[1737843096581,0.94610042,105230.0,105220.0,0.27422996]
[1737843097681,0.94610042,105230.0,105220.0,0.31082996]
[1737843099185,1.06014638,105230.0,105220.0,0.537207]
[1737843099485,1.06014638,105230.0,105220.0,0.57840682]
[1737843101384,1.06014638,105230.0,105220.0,0.61880011]
[1737843101783,1.06014638,105230.0,105220.0,0.537207]
[1737843103086,0.90807638,105230.0,105220.0,0.58855196]
[1737843103283,0.90807638,105230.0,105220.0,0.537207]
[1737843103489,0.90807638,105230.0,105220.0,0.57761842]
[1737843103789,0.90807638,105230.0,105220.0,0.62896338]
[1737843104483,0.90807638,105230.0,105220.0,0.57761842]
[1737843104682,0.90807638,105230.0,105220.0,0.62896338]
[1737843105185,0.90807638,105230.0,105220.0,0.6701632]
[1737843105379,0.90807638,105230.0,105220.0,0.62896338]
[1737843108493,0.79403042,105230.0,105220.0,0.91187803]
[1737843110295,0.43323042,105230.0,105220.0,1.00691247]
[1737843110685,0.3608,105230.0,105220.0,1.00691247]
[1737843111694,0.3608,105230.0,105220.0,0.72399782]
[1737843111899,0.47498865,105240.0,105230.0,0.15207]
[1737843112095,0.54741907,105240.0,105230.0,0.41167116]
[1737843112290,0.54741907,105240.0,105230.0,0.37047134]
[1737843114501,0.54729182,105240.0,105230.0,0.37047134]
[1737843114892,0.54729182,105240.0,105230.0,0.38475134]
[1737843115291,0.43324586,105240.0,105230.0,0.61112838]
[1737843116396,0.43324586,105240.0,105230.0,0.55978342]
[1737843116587,0.43324586,105240.0,105230.0,0.61112838]
[1737843117495,0.43324586,105240.0,105230.0,0.55978342]
[1737843118398,0.43324586,105240.0,105230.0,0.519372]
[1737843118599,0.43324586,105240.0,105230.0,0.55972074]
[1737843119400,0.43324586,105240.0,105230.0,0.519372]
[1737843120204,0.43324586,105240.0,105230.0,0.52871722]
[1737843122399,0.43324586,105240.0,105230.0,0.56905915]
[1737843127898,0.43324586,105240.0,105230.0,0.61025897]
[1737843130407,0.43324586,105240.0,105230.0,0.56905915]
[1737843134506,0.43324586,105240.0,105230.0,0.55477915]
[1737843134706,0.43324586,105240.0,105230.0,0.56905915]
[1737843137206,0.36081544,105240.0,105230.0,0.37968915]
[1737843137414,0.63664682,105240.0,105230.0,0.31726401]
[1737843137609,0.62370186,105240.0,105230.0,0.27606419]
[1737843137814,0.62370186,105240.0,105230.0,0.32740915]
[1737843138016,0.62370186,105240.0,105230.0,0.28706722]
[1737843139316,0.62370186,105240.0,105230.0,0.32744847]
[1737843140422,0.73774782,105240.0,105230.0,0.32744847]
[1737843142323,0.73774782,105240.0,105230.0,0.39576847]
[1737843143416,0.73774782,105240.0,105230.0,0.35538722]
[1737843143622,0.78909278,105240.0,105230.0,0.30404226]
[1737843143823,0.78909278,105240.0,105230.0,0.35538722]
[1737843144222,0.73774782,105240.0,105230.0,0.35538722]
[1737843144424,0.79873747,105240.0,105230.0,0.35538722]
[1737843144624,0.74739251,105240.0,105230.0,0.35538722]
[1737843144924,0.79873747,105240.0,105230.0,0.35538722]
[1737843145126,0.72630705,105240.0,105230.0,0.35538722]
[1737843145427,0.79873747,105240.0,105230.0,0.30404226]
[1737843148730,0.79873747,105240.0,105230.0,0.29469704]
[1737843151328,0.72630705,105240.0,105230.0,0.29469704]
[1737843151530,0.82701829,105240.0,105230.0,0.06832]
[1737843157432,0.15207,105230.0,105220.0,0.28113646]
[1737843157729,0.58530042,105230.0,105220.0,0.29541646]
[1737843158724,0.58530042,105230.0,105220.0,0.29641646]
[1737843159929,0.58530042,105230.0,105220.0,0.29741646]
[1737843161333,0.58530042,105230.0,105220.0,0.22913646]
[1737843161535,0.58530042,105230.0,105220.0,0.34876142]
[1737843162830,0.58530042,105230.0,105220.0,0.29741646]
[1737843164637,0.69908845,105230.0,105220.0,0.29741646]
[1737843165734,0.69908845,105230.0,105220.0,0.34876142]
[1737843166125,0.69908845,105230.0,105220.0,0.38706142]
[1737843166323,0.69908845,105230.0,105220.0,0.42606142]
[1737843172440,0.69908845,105230.0,105220.0,0.37471646]
[1737843174436,0.69908845,105230.0,105220.0,0.29215646]
[1737843174637,0.69908845,105230.0,105220.0,0.36043646]
[1737843177146,0.62665803,105230.0,105220.0,0.36043646]
[1737843179350,0.65519678,105230.0,105220.0,0.5868135]
[1737843182144,0.7276272,105230.0,105220.0,0.5868135]
[1737843183044,0.7276272,105230.0,105220.0,0.62725585]
[1737843191263,0.77897216,105230.0,105220.0,0.29665704]
[1737843191466,0.85457216,105230.0,105220.0,0.22837704]
[1737843193274,0.71224538,105230.0,105220.0,0.22837704]
[1737843195569,0.76359034,105230.0,105220.0,0.22837704]
[1737843195760,0.71224538,105230.0,105220.0,0.22837704]
[1737843196569,0.152085,105220.0,105210.0,0.00014269]
[1737843196765,0.67616038,105220.0,105210.0,0.00014269]
[1737843197767,0.67616038,105220.0,105210.0,0.00214269]
[1737843198174,0.67616038,105220.0,105210.0,0.00614269]
[1737843200669,0.72750534,105220.0,105210.0,0.00614269]
[1737843201769,1.0396961,105220.0,105210.0,0.00614269]
[1737843205065,0.96726568,105220.0,105210.0,0.00614269]
[1737843205370,0.89731141,105220.0,105210.0,0.00614269]
[1737843206568,0.152142,105180.0,105170.0,0.3392024]
[1737843206871,0.97643192,105180.0,105170.0,0.3392024]
[1737843207770,0.97650595,105180.0,105170.0,0.3482024]
[1737843207963,0.97643192,105180.0,105170.0,0.3482024]
[1737843208164,0.97643192,105180.0,105170.0,0.3492024]
[1737843209466,0.97643192,105180.0,105170.0,0.3402024]
[1737843209773,1.01803192,105180.0,105170.0,0.3412024]
[1737843209970,1.06937688,105180.0,105170.0,0.3412024]
[1737843210574,1.06937688,105180.0,105170.0,0.002]
[1737843210575,1.23918295,105180.0,105170.0,0.002]
[1737843211069,1.18791202,105180.0,105170.0,0.002]
[1737843211571,1.18783799,105180.0,105170.0,0.002]
[1737843212963,1.24844135,105180.0,105170.0,0.002]
[1737843213163,1.19709639,105180.0,105170.0,0.002]
[1737843213366,1.2256062,105180.0,105170.0,0.002]
[1737843213566,1.27695116,105180.0,105170.0,0.002]
[1737843213768,1.2256062,105180.0,105170.0,0.002]
[1737843213970,1.27695116,105180.0,105170.0,0.002]
[1737843214471,1.2256062,105180.0,105170.0,0.002]
[1737843214673,1.27695116,105180.0,105170.0,0.002]
[1737843215674,1.2256062,105180.0,105170.0,0.002]
[1737843215978,1.22568023,105180.0,105170.0,0.002]
[1737843216178,1.2256062,105180.0,105170.0,0.002]
[1737843216367,1.27695116,105180.0,105170.0,0.002]
[1737843216573,1.2256062,105180.0,105170.0,0.002]
[1737843218584,0.152186,105150.0,105140.0,0.40624479]
[1737843218785,0.56440499,105150.0,105140.0,0.35489983]
[1737843219082,0.51306003,105150.0,105140.0,0.35489983]
[1737843219683,0.51306003,105150.0,105140.0,0.36289983]
[1737843220272,0.51306003,105150.0,105140.0,0.37189983]
[1737843220475,0.51306003,105150.0,105140.0,0.42324479]
[1737843220671,0.51306003,105150.0,105140.0,0.37189983]
[1737843222389,0.51306003,105150.0,105140.0,0.30205983]
[1737843222590,0.51306003,105150.0,105140.0,0.37161983]
[1737843225282,0.56440499,105150.0,105140.0,0.292698]
[1737843225678,0.56440499,105150.0,105140.0,0.1405]
[1737843226686,0.61574995,105150.0,105140.0,0.1405]
[1737843226982,0.61574995,105150.0,105140.0,0.0563]
[1737843227185,0.65504995,105150.0,105140.0,0.0563]
[1737843227383,0.65504995,105150.0,105140.0,0.017]
[1737843229103,0.65497592,105150.0,105140.0,0.017]
[1737843231996,0.65504995,105150.0,105140.0,0.017]
[1737843232303,0.65497592,105150.0,105140.0,0.017]
[1737843233602,0.91002443,105150.0,105140.0,0.017]
[1737843233797,0.94952751,105150.0,105140.0,0.017]
[1737843234199,0.94945348,105150.0,105140.0,0.017]
[1737843236201,0.89810852,105150.0,105140.0,0.017]
[1737843237001,0.81293703,105150.0,105140.0,0.017]
[1737843238203,0.86428199,105150.0,105140.0,0.017]
[1737843238407,0.81293703,105150.0,105140.0,0.017]
[1737843239013,0.86428199,105150.0,105140.0,0.017]
[1737843239210,0.81293703,105150.0,105140.0,0.017]
[1737843240215,0.86428199,105150.0,105140.0,0.017]
[1737843240607,0.69447592,105150.0,105140.0,0.017]
[1737843240809,0.69454995,105150.0,105140.0,0.017]
[1737843241013,0.69447592,105150.0,105140.0,0.017]
[1737843241514,0.69447592,105150.0,105140.0,0.011]
[1737843241713,0.69447592,105150.0,105140.0,0.005]
[1737843242016,0.1522,105140.0,105130.0,0.02654269]
[1737843242205,0.65646395,105140.0,105130.0,0.02654269]
[1737843243516,0.65646395,105140.0,105130.0,0.02954269]
[1737843244617,0.87958992,105140.0,105130.0,0.03554269]
[1737843244918,0.87958992,105140.0,105130.0,0.03005521]
[1737843245308,0.65738992,105140.0,105130.0,0.02475521]
[1737843245514,0.65838992,105140.0,105130.0,0.02175521]
[1737843245712,0.65738992,105140.0,105130.0,0.01575521]
[1737843245913,0.66038992,105140.0,105130.0,0.01575521]
[1737843246309,0.66799178,105140.0,105130.0,0.01575521]
[1737843246815,0.83869871,105140.0,105130.0,0.01575521]
[1737843247719,0.83877274,105140.0,105130.0,0.01575521]
[1737843247920,0.83869871,105140.0,105130.0,0.01575521]
[1737843251125,0.66799178,105140.0,105130.0,0.01575521]
[1737843251623,0.152215,105130.0,105120.0,0.00014269]
[1737843251822,0.65800492,105130.0,105120.0,0.00014269]
[1737843255021,0.69920492,105130.0,105120.0,0.00014269]
[1737843255719,0.8700565,105130.0,105120.0,0.00014269]
[1737843256420,0.8700565,105130.0,105120.0,0.00544269]
[1737843256614,0.152244,105110.0,105100.0,0.1]
[1737843256821,0.152273,105090.0,105080.0,0.32550801]
[1737843257021,0.92529199,105090.0,105080.0,0.32550801]
[1737843257321,0.92529199,105090.0,105080.0,0.36550801]
[1737843258126,0.92529199,105090.0,105080.0,0.37150801]
[1737843259027,0.92529199,105090.0,105080.0,0.37450801]
[1737843259729,0.95222233,105090.0,105080.0,0.37450801]
[1737843260223,0.87394703,105090.0,105080.0,0.37450801]